bitfinex/quotes_BTCUSD_20240815
["timestamp","ask_amount","ask_price","bid_price","bid_amount"]
[1723729382019,1.765043,59322.0,59321.0,0.51874962]
[1723729382263,1.754043,59322.0,59321.0,0.51874962]
[1723729382512,1.769043,59322.0,59321.0,0.51874962]
[1723729382758,1.778043,59322.0,59321.0,0.51874962]
[1723729383002,1.769043,59322.0,59321.0,0.51874962]
[1723729383513,2.220686,59322.0,59321.0,0.35520841]
[1723729383751,2.220686,59322.0,59321.0,0.24785661]
[1723729384001,2.233686,59322.0,59321.0,0.24785661]
[1723729384548,2.220686,59322.0,59321.0,0.24785661]
[1723729385029,2.234686,59322.0,59321.0,0.24785661]
[1723729385365,2.234686,59322.0,59312.0,1e-06]
[1723729385366,0.3,59313.0,59312.0,1e-06]
[1723729385367,0.268611,59308.0,59307.0,1e-08]
[1723729385604,1.411196,59302.0,59291.0,0.009297]
[1723729385878,1.871452,59302.0,59291.0,0.009297]
[1723729386150,1.871452,59302.0,59301.0,0.45508362]
[1723729386422,1.871452,59302.0,59301.0,0.3653927]
[1723729386423,2.308708,59302.0,59301.0,0.3653927]
[1723729386692,2.645964,59302.0,59301.0,0.16441674]
[1723729387262,2.645964,59302.0,59301.0,0.11063874]
[1723729387272,2.645964,59302.0,59286.0,0.51466362]
[1723729387273,0.168671,59287.0,59286.0,0.51466362]
[1723729387541,0.168671,59287.0,59286.0,0.205998]
[1723729387542,2.178639,59287.0,59286.0,0.205998]
[1723729387768,2.638981,59287.0,59286.0,0.18571382]
[1723729388031,2.638981,59287.0,59286.0,0.1324121]
[1723729388317,2.638981,59287.0,59264.0,0.00012]
[1723729388318,1.918165,59282.0,59264.0,0.00012]
[1723729388539,0.843567,59272.0,59264.0,0.00012]
[1723729388784,1.763921,59272.0,59264.0,0.00012]
[1723729389029,1.863921,59272.0,59264.0,0.00012]
[1723729389558,1.87616706,59272.0,59264.0,0.00012]
[1723729389802,1.89016706,59272.0,59264.0,0.00012]
[1723729390053,1.87616706,59272.0,59264.0,0.00012]
[1723729390582,1.89016706,59272.0,59264.0,0.00012]
[1723729390891,1.55274006,59272.0,59264.0,0.00012]
[1723729391090,0.31795906,59272.0,59266.0,0.127]
[1723729391336,0.196713,59272.0,59266.0,0.127]
[1723729391603,0.871567,59272.0,59266.0,0.127]
[1723729391862,0.871567,59272.0,59264.0,0.00012]
[1723729391863,1.180994,59272.0,59264.0,0.00012]
[1723729392103,1.321794,59272.0,59264.0,0.00012]
[1723729392345,1.321794,59272.0,59271.0,0.5073983]
[1723729392346,1.771721,59272.0,59271.0,0.5073983]
[1723729392592,2.180721,59272.0,59271.0,0.34202578]
[1723729392833,2.532148,59272.0,59271.0,0.32992006]
[1723729393333,2.518148,59272.0,59271.0,0.32089195]
[1723729393574,2.518148,59272.0,59271.0,0.30520451]
[1723729394052,2.528148,59272.0,59271.0,0.24257499]
[1723729394300,2.528148,59272.0,59271.0,0.20883045]
[1723729394573,2.518148,59272.0,59271.0,0.20883045]
[1723729394838,2.194721,59272.0,59271.0,0.18684113]
[1723729395087,0.857567,59272.0,59271.0,0.18684113]
[1723729395329,0.871567,59272.0,59271.0,0.18684113]
[1723729395568,0.871567,59272.0,59271.0,0.31044113]
[1723729395569,0.028,59272.0,59271.0,0.31044113]
[1723729395814,0.028,59272.0,59271.0,0.41024113]
[1723729396080,0.028,59272.0,59271.0,2.20003283]
[1723729396081,0.014,59272.0,59271.0,2.20003283]
[1723729396335,0.014,59272.0,59271.0,1.62501613]
[1723729396812,0.33731,59293.0,59278.0,0.299396]
[1723729397058,0.13423799,59301.0,59278.0,0.1307]
[1723729397554,0.168666,59289.0,59278.0,0.1307]
[1723729397803,0.13423799,59301.0,59280.0,0.16869]
[1723729398062,0.13423799,59301.0,59281.0,0.1016]
[1723729398063,0.337286,59297.0,59281.0,0.1016]
[1723729398340,0.1222,59306.0,59283.0,0.1307]
[1723729398606,0.1222,59306.0,59288.0,0.1307]
[1723729398607,0.337262,59301.0,59288.0,0.1307]
[1723729398891,0.337262,59301.0,59278.0,0.01198227]
[1723729398892,0.33737,59282.0,59273.0,0.1016]
[1723729399125,0.33737,59282.0,59276.0,0.1307]
[1723729399126,0.506097,59277.0,59276.0,0.1307]
[1723729399399,0.506097,59277.0,59269.0,0.1]
[1723729399400,0.50614,59272.0,59271.0,0.31754113]
[1723729399743,0.168713,59272.0,59271.0,0.31754113]
[1723729399938,1.303994,59272.0,59271.0,0.18684113]
[1723729400208,1.77523052,59272.0,59271.0,0.18684113]
[1723729400445,0.966567,59272.0,59271.0,0.18684113]
[1723729400935,0.62914,59272.0,59271.0,0.18684113]
[1723729401687,0.108,59272.0,59271.0,0.18784113]
[1723729401914,0.009,59272.0,59271.0,0.18784113]
[1723729402156,0.1,59274.0,59271.0,0.18684113]
[1723729402388,0.175713,59272.0,59271.0,0.18684113]
[1723729402623,0.275713,59272.0,59271.0,0.18684113]
[1723729402858,0.944567,59272.0,59271.0,0.18684113]
[1723729403101,1.291994,59272.0,59271.0,0.18684113]
[1723729403381,1.738121,59272.0,59271.0,0.18684113]
[1723729403686,1.304994,59272.0,59271.0,0.18684113]
[1723729403968,0.966567,59272.0,59271.0,0.18684113]
[1723729404210,0.966567,59272.0,59271.0,0.18784113]
[1723729404488,0.1,59272.0,59271.0,0.18784113]
[1723729404746,0.1,59272.0,59271.0,0.18684113]
[1723729404747,0.843567,59272.0,59271.0,0.18684113]
[1723729404988,0.982567,59272.0,59271.0,0.18784113]
[1723729405226,0.976567,59272.0,59271.0,0.18784113]
[1723729405460,0.976567,59272.0,59271.0,0.18684113]
[1723729405461,1.314994,59272.0,59271.0,0.18684113]
[1723729405707,0.986567,59272.0,59271.0,0.18784113]
[1723729405953,0.62614,59272.0,59271.0,0.18784113]
[1723729406206,0.963567,59272.0,59271.0,0.18784113]
[1723729406677,0.288713,59272.0,59271.0,0.18784113]
[1723729406923,0.12,59272.0,59271.0,0.18784113]
[1723729407174,0.12,59272.0,59271.0,0.48095713]
[1723729407175,0.02,59272.0,59271.0,0.48095713]
[1723729407456,0.02,59272.0,59271.0,1.106012]
[1723729407713,0.337318,59292.0,59275.0,0.1244]
[1723729407949,0.51466362,59298.0,59275.0,0.1244]
[1723729407950,0.51466362,59298.0,59279.0,0.11953727]
[1723729408193,0.0947,59299.0,59280.0,0.00121543]
[1723729409334,0.519923,59298.0,59285.0,0.168676]
[1723729409573,0.014,59298.0,59283.0,0.095]
[1723729409830,0.337256,59302.0,59283.0,0.095]
[1723729410161,0.168668,59288.0,59283.0,0.095]
[1723729410397,0.337328,59290.0,59283.0,0.095]
[1723729410641,0.168679,59284.0,59283.0,0.095]
[1723729410897,0.014,59299.0,59284.0,0.1189]
[1723729411164,0.008,59298.0,59297.0,0.2221]
[1723729411663,0.857197,59298.0,59297.0,0.1189]
[1723729411950,0.182639,59298.0,59297.0,0.1189]
[1723729412200,0.168632,59301.0,59297.0,0.1189]
[1723729412516,0.014,59299.0,59297.0,0.1189]
[1723729412720,0.17155454,59310.0,59297.0,0.1189]
[1723729412721,0.337244,59305.0,59297.0,0.1189]
[1723729412965,0.021,59298.0,59297.0,0.1209]
[1723729413248,0.021,59298.0,59297.0,1.3707827]
[1723729413505,0.007,59298.0,59297.0,1.3697827]
[1723729414015,0.34719354,59298.0,59297.0,1.3697827]
[1723729414250,1.14475154,59298.0,59297.0,0.001]
[1723729414509,1.14475154,59298.0,59291.0,0.1182]
[1723729414510,0.29455454,59298.0,59291.0,0.1182]
[1723729414752,0.17155454,59297.0,59291.0,0.1182]
[1723729414998,0.168649,59295.0,59291.0,0.1182]
[1723729415246,0.168645,59296.0,59291.0,0.1182]
[1723729415489,0.17155454,59297.0,59291.0,0.1182]
[1723729415739,0.168649,59295.0,59291.0,0.1182]
[1723729416006,0.168646,59296.0,59291.0,0.1192]
[1723729416232,0.168648,59295.0,59291.0,0.1182]
[1723729416444,0.168648,59295.0,59291.0,0.1192]
[1723729416850,0.168648,59295.0,59291.0,0.1182]
[1723729417062,0.168656,59292.0,59291.0,0.1192]
[1723729417282,0.168656,59292.0,59291.0,0.001]
[1723729417283,0.77752354,59292.0,59291.0,0.001]
[1723729417526,1.13783654,59292.0,59291.0,0.001]
[1723729417717,0.27155454,59292.0,59291.0,0.001]
[1723729417928,0.006,59295.0,59291.0,0.001]
[1723729418140,0.006,59295.0,59291.0,0.1456]
[1723729418351,0.006,59295.0,59292.0,0.1156]
[1723729418560,0.1009108,59298.0,59292.0,0.1156]
[1723729418770,0.008,59296.0,59292.0,0.1156]
[1723729419200,0.176645,59296.0,59292.0,0.1156]
[1723729419411,0.168653,59293.0,59292.0,0.1156]
[1723729419623,0.168651,59294.0,59291.0,0.1456]
[1723729419841,0.172649,59295.0,59291.0,0.1446]
[1723729420083,0.172649,59295.0,59287.0,0.1155]
[1723729420084,0.004,59295.0,59292.0,1.2498827]
[1723729420285,0.168653,59293.0,59292.0,1.2508827]
[1723729420499,1.01482154,59293.0,59292.0,1.2498827]
[1723729420931,0.843355,59287.0,59286.0,0.1329]
[1723729421148,0.843355,59287.0,59283.0,1.2498827]
[1723729421149,0.337349,59286.0,59284.0,0.03376]
[1723729421402,0.168676,59285.0,59284.0,0.03376]
[1723729421837,1.01493654,59285.0,59284.0,0.03376]
[1723729422044,0.123,59292.0,59284.0,0.03376]
[1723729422045,0.168669,59288.0,59284.0,0.03376]
[1723729422265,0.1,59292.0,59284.0,0.03376]
[1723729422266,0.168663,59290.0,59284.0,0.03376]
[1723729422488,0.1,59289.0,59284.0,0.03776]
[1723729422741,0.268665,59289.0,59284.0,0.03776]
[1723729422979,0.168668,59288.0,59284.0,0.03376]
[1723729423210,0.337353,59285.0,59283.0,1.2498827]
[1723729423442,0.506038,59284.0,59283.0,1.2498827]
[1723729423871,0.843397,59284.0,59283.0,1.2498827]
[1723729424090,0.001,59285.0,59283.0,1.2498827]
[1723729424304,0.001,59285.0,59284.0,0.86497527]
[1723729424512,0.001,59285.0,59284.0,0.52761627]
[1723729424735,0.001,59285.0,59284.0,0.86497527]
[1723729425180,0.0009108,59298.0,59287.0,0.168669]
[1723729425483,0.5068328,59298.0,59288.0,1.2498827]
[1723729425687,0.168646,59296.0,59288.0,1.2498827]
[1723729425899,0.168643,59297.0,59288.0,1.2498827]
[1723729426335,0.1765518,59298.0,59288.0,1.2498827]
[1723729426550,0.0079108,59298.0,59288.0,1.2498827]
[1723729426755,0.337288,59297.0,59288.0,1.2498827]
[1723729426969,0.337305,59294.0,59288.0,1.2498827]
[1723729427182,0.17155454,59296.0,59288.0,1.2518827]
[1723729427183,0.505995,59289.0,59288.0,1.2518827]
[1723729427414,1.01487954,59289.0,59288.0,1.2518827]
[1723729427623,1.11487954,59289.0,59288.0,1.2518827]
[1723729427839,1.45220954,59289.0,59288.0,1.2508827]
[1723729428051,1.45220954,59289.0,59288.0,0.001]
[1723729428269,2.04437367,59289.0,59288.0,0.001]
[1723729428482,0.843495,59277.0,59276.0,0.4686]
[1723729428697,0.506124,59274.0,59273.0,1.2498827]
[1723729428928,1.35251054,59274.0,59273.0,1.2498827]
[1723729429192,1.11509454,59274.0,59273.0,1.2498827]
[1723729429404,0.77767854,59274.0,59273.0,1.2498827]
[1723729430047,1.11509454,59274.0,59273.0,1.2498827]
[1723729430935,1.12009454,59274.0,59273.0,1.2498827]
[1723729431149,1.11809454,59274.0,59273.0,1.2498827]
[1723729431585,0.78367854,59274.0,59273.0,1.2498827]
[1723729432041,0.506131,59273.0,59272.0,0.000828]
[1723729432256,1.11510654,59273.0,59272.0,0.000828]
[1723729432476,1.53161989,59273.0,59272.0,0.000828]
[1723729432696,1.58813462,59273.0,59272.0,0.000828]
[1723729432918,1.19462127,59273.0,59272.0,0.000828]
[1723729433192,0.66549027,59273.0,59272.0,0.000828]
[1723729433397,0.77768554,59273.0,59272.0,0.000828]
[1723729433616,1.13910654,59273.0,59272.0,0.000828]
[1723729433831,1.5370396,59273.0,59272.0,0.000828]
[1723729434052,1.5330396,59273.0,59272.0,0.000828]
[1723729434489,1.5400396,59273.0,59272.0,0.000828]
[1723729434701,1.5320396,59273.0,59272.0,0.000828]
[1723729434916,2.02362401,59273.0,59272.0,0.000828]
[1723729435134,2.13512401,59273.0,59272.0,0.000828]
[1723729435351,2.27942401,59273.0,59272.0,0.000828]
[1723729436230,1.78863654,59273.0,59272.0,0.000828]
[1723729436668,1.79163654,59273.0,59272.0,0.000828]
[1723729437125,1.80163654,59273.0,59272.0,0.001828]
[1723729437361,1.81563654,59273.0,59272.0,0.001828]
[1723729437604,1.95919108,59273.0,59272.0,0.000828]
[1723729437852,1.78763654,59273.0,59272.0,0.000828]
[1723729438093,1.81263654,59273.0,59272.0,0.001828]
[1723729438302,1.79863654,59273.0,59272.0,0.001828]
[1723729438519,1.54283654,59273.0,59272.0,0.001828]
[1723729438725,1.55683654,59273.0,59272.0,0.001828]
[1723729438935,1.71368271,59273.0,59272.0,0.001828]
[1723729439175,1.55683654,59273.0,59272.0,0.001828]
[1723729439891,1.19441554,59273.0,59272.0,0.000828]
[1723729440103,1.17141554,59273.0,59272.0,0.000828]
[1723729440314,0.07051206,59273.0,59272.0,0.141828]
[1723729440540,0.07051206,59273.0,59272.0,1.3927107]
[1723729440541,0.028,59273.0,59272.0,1.3927107]
[1723729440814,0.028,59273.0,59272.0,2.0422107]
[1723729441126,0.014,59273.0,59272.0,2.3786377]
[1723729441364,0.0009108,59298.0,59272.0,0.45674254]
[1723729441601,0.51466362,59288.0,59280.0,0.22757727]
[1723729441849,0.168663,59290.0,59282.0,0.1371]
[1723729442098,0.0009108,59298.0,59282.0,0.1371]
[1723729442099,0.17155454,59289.0,59282.0,0.1371]
[1723729442528,0.337287,59297.0,59282.0,0.22287727]
[1723729442742,0.17155454,59296.0,59285.0,0.168675]
[1723729443172,0.17155454,59296.0,59283.0,0.1393]
[1723729443406,0.168666,59289.0,59283.0,0.1393]
[1723729443635,0.3693,59295.0,59283.0,0.1393]
[1723729443851,0.0149108,59298.0,59277.0,0.1436]
[1723729443852,0.337347,59286.0,59277.0,0.1436]
[1723729444069,0.168696,59278.0,59275.0,0.03376]
[1723729444290,0.17155454,59285.0,59272.0,0.144428]
[1723729444508,0.15647622,59284.0,59272.0,0.144428]
[1723729444802,0.56539876,59283.0,59272.0,0.144428]
[1723729445024,0.1687,59277.0,59272.0,0.144428]
[1723729445240,0.337396,59278.0,59272.0,0.144428]
[1723729445241,0.168705,59275.0,59272.0,0.144428]
[1723729445446,0.34025954,59275.0,59272.0,0.144428]
[1723729446341,0.17155454,59275.0,59272.0,0.144428]
[1723729446556,0.1,59282.0,59273.0,0.03376]
[1723729446776,0.1,59285.0,59280.0,0.144]
[1723729447003,0.17155454,59285.0,59280.0,0.144]
[1723729447243,0.506064,59281.0,59280.0,0.144]
[1723729447490,0.17155454,59281.0,59277.0,0.03376]
[1723729447910,0.17155454,59281.0,59275.0,0.03376]
[1723729448123,0.268679,59284.0,59275.0,0.03376]
[1723729448332,0.17155454,59280.0,59274.0,0.17776]
[1723729448565,0.168695,59279.0,59274.0,0.17776]
[1723729448794,0.1,59284.0,59277.0,0.11953727]
[1723729449002,0.067582,59290.0,59283.0,0.08577727]
[1723729449207,0.067582,59290.0,59284.0,1.33565997]
[1723729449420,0.18022527,59297.0,59286.0,0.168672]
[1723729449625,0.436876,59295.0,59284.0,1.2498827]
[1723729449844,0.22799159,59294.0,59284.0,1.2498827]
[1723729450053,0.168676,59285.0,59284.0,1.2498827]
[1723729450283,0.337325,59290.0,59284.0,1.2498827]
[1723729450506,0.17155454,59289.0,59284.0,1.2498827]
[1723729450933,0.168663,59290.0,59284.0,1.2498827]
[1723729451186,0.168666,59289.0,59284.0,1.2508827]
[1723729451449,0.17155454,59290.0,59284.0,1.2508827]
[1723729451657,0.347304,59294.0,59284.0,1.2508827]
[1723729451658,0.001,59285.0,59284.0,1.4195617]
[1723729451905,0.1,59294.0,59284.0,1.3927827]
[1723729452137,0.005,59289.0,59284.0,1.3927827]
[1723729452858,0.005,59289.0,59285.0,1.2498827]
[1723729453326,0.007,59290.0,59285.0,1.2498827]
[1723729453565,0.1,59294.0,59285.0,1.2498827]
[1723729453782,0.28155454,59294.0,59285.0,1.2498827]
[1723729456578,0.17155454,59291.0,59287.0,0.1447]
[1723729456788,0.337325,59290.0,59285.0,1.2498827]
[1723729456999,0.168668,59288.0,59285.0,1.2498827]
[1723729457214,0.337325,59290.0,59285.0,1.2498827]
[1723729457215,0.001,59286.0,59285.0,1.2498827]
[1723729457424,0.169673,59286.0,59285.0,1.2498827]
[1723729457662,0.50602,59286.0,59285.0,1.2498827]
[1723729458177,0.50602,59286.0,59285.0,0.001]
[1723729458178,1.50871142,59286.0,59285.0,0.001]
[1723729458411,1.54350503,59286.0,59285.0,0.001]
[1723729458646,1.37483203,59286.0,59275.0,0.143]
[1723729458879,0.168702,59276.0,59272.0,0.000828]
[1723729459111,0.506085,59279.0,59272.0,0.000828]
[1723729459362,0.47214161,59286.0,59278.0,0.08577727]
[1723729459363,0.11179361,59286.0,59278.0,0.08577727]
[1723729459580,0.1,59286.0,59279.0,0.1381]
[1723729460231,0.102,59286.0,59279.0,0.1381]
[1723729460545,0.337374,59282.0,59279.0,0.1381]
[1723729460776,0.102,59286.0,59273.0,0.1429]
[1723729460777,0.22798906,59281.0,59273.0,0.1429]
[1723729461026,0.17155454,59281.0,59273.0,0.1429]
[1723729461271,0.168694,59279.0,59273.0,0.1429]
[1723729461521,0.1687,59277.0,59273.0,0.1429]
[1723729461786,0.2383,59286.0,59274.0,0.08577727]
[1723729461990,0.2383,59286.0,59280.0,0.08577727]
[1723729461991,0.05643358,59285.0,59280.0,0.08577727]
[1723729462220,0.001,59281.0,59280.0,0.08577727]
[1723729462463,0.001,59281.0,59280.0,0.34024454]
[1723729462698,0.001,59281.0,59280.0,1.63874754]
[1723729463170,0.002,59281.0,59280.0,1.65057328]
[1723729463413,0.001,59281.0,59280.0,1.65057328]
[1723729464146,0.0009108,59298.0,59286.0,0.002]
[1723729464390,0.0009108,59298.0,59280.0,0.46974028]
[1723729464391,0.0009108,59298.0,59297.0,1.17868927]
[1723729464601,0.0009108,59298.0,59297.0,1.51597427]
[1723729464810,0.0009108,59298.0,59297.0,1.17868927]
[1723729466884,0.0099108,59298.0,59297.0,0.28746]
[1723729467069,0.0019108,59298.0,59297.0,0.28746]
[1723729467279,0.0019108,59298.0,59297.0,0.456102]
[1723729467487,0.0029108,59298.0,59297.0,0.460102]
[1723729467701,0.0019108,59298.0,59297.0,0.793387]
[1723729467916,0.0009108,59298.0,59297.0,1.126672]
[1723729468172,0.0019108,59298.0,59297.0,1.467957]
[1723729468383,0.0019108,59298.0,59297.0,1.132672]
[1723729468806,0.0009108,59298.0,59297.0,1.126672]
[1723729469031,0.0009108,59298.0,59297.0,1.463957]
[1723729469274,0.0009108,59298.0,59297.0,1.74351154]
[1723729469275,0.0019108,59298.0,59297.0,1.74351154]
[1723729469502,0.0019108,59298.0,59297.0,1.75541355]
[1723729469735,0.0029108,59298.0,59297.0,1.75941355]
[1723729469972,0.0019108,59298.0,59297.0,1.75541355]
[1723729470431,0.0029108,59298.0,59297.0,1.75941355]
[1723729470661,0.0029108,59298.0,59297.0,2.09669855]
[1723729471779,0.0029108,59298.0,59297.0,1.75941355]
[1723729472491,0.0029108,59298.0,59297.0,1.75741355]
[1723729472702,0.0029108,59298.0,59297.0,1.14857401]
[1723729472925,0.0029108,59298.0,59297.0,0.29346]
[1723729473140,0.0029108,59298.0,59297.0,0.04376]
[1723729473567,0.0029108,59298.0,59297.0,0.886972]
[1723729474201,0.0019108,59298.0,59297.0,0.882972]
[1723729474409,0.0009108,59298.0,59297.0,0.543687]
[1723729474839,0.0019108,59298.0,59297.0,0.543687]
[1723729475050,0.0029108,59298.0,59297.0,0.547687]
[1723729475265,0.0019108,59298.0,59297.0,0.03776]
[1723729475683,0.0029108,59298.0,59297.0,0.547687]
[1723729476139,0.0029108,59298.0,59297.0,0.04176]
[1723729476564,0.0029108,59298.0,59297.0,1.2916427]
[1723729476774,0.0029108,59298.0,59297.0,1.7975697]
[1723729477214,0.0029108,59298.0,59297.0,2.1348547]
[1723729477424,0.0019108,59298.0,59297.0,2.1308547]
[1723729477645,0.0019108,59298.0,59297.0,2.4681397]
[1723729477862,0.0019108,59298.0,59297.0,2.6087397]
[1723729478073,0.0029108,59298.0,59297.0,3.23097924]
[1723729478287,0.1339,59320.0,59297.0,3.23097924]
[1723729478288,0.1339,59320.0,59310.0,0.1406]
[1723729478503,0.51466362,59312.0,59311.0,1.2469719]
[1723729478710,0.17155454,59319.0,59311.0,1.2469719]
[1723729479147,0.337173,59317.0,59311.0,1.2469719]
[1723729479367,0.2499,59311.0,59304.0,0.4686]
[1723729479600,0.17155454,59310.0,59304.0,0.4686]
[1723729479817,0.27155454,59310.0,59304.0,0.4686]
[1723729480042,0.16861,59309.0,59304.0,0.4686]
[1723729480258,0.023,59317.0,59305.0,1.3812719]
[1723729480259,0.11,59317.0,59305.0,1.3812719]
[1723729480489,0.28155454,59317.0,59305.0,1.3812719]
[1723729480699,0.012,59311.0,59305.0,1.3812719]
[1723729480917,0.278586,59317.0,59307.0,0.168613]
[1723729481136,0.168588,59316.0,59305.0,1.3812719]
[1723729481354,0.168617,59306.0,59305.0,1.2469719]
[1723729481566,0.001,59309.0,59298.0,0.03376]
[1723729481567,0.1357,59307.0,59298.0,0.03376]
[1723729481786,0.168631,59301.0,59298.0,0.03376]
[1723729481995,0.1142,59304.0,59297.0,1.2307319]
[1723729482226,0.1142,59304.0,59298.0,0.03376]
[1723729482227,0.168636,59299.0,59298.0,0.03376]
[1723729482439,0.168636,59299.0,59288.0,0.418967]
[1723729482440,0.17155454,59299.0,59291.0,1.2307319]
[1723729482653,0.1142,59304.0,59288.0,0.6047]
[1723729482654,0.27155454,59298.0,59292.0,1.2307319]
[1723729483092,0.168644,59297.0,59292.0,1.2307319]
[1723729483302,0.17155454,59296.0,59292.0,1.2307319]
[1723729483583,0.168652,59294.0,59292.0,1.2307319]
[1723729483791,0.168651,59294.0,59292.0,1.2307319]
[1723729483991,0.168648,59295.0,59292.0,1.2307319]
[1723729484410,0.748687,59290.0,59289.0,0.03376]
[1723729484626,0.58291654,59290.0,59289.0,0.03376]
[1723729484843,0.27895454,59290.0,59289.0,0.03376]
[1723729485053,0.579999,59295.0,59289.0,0.03376]
[1723729485267,0.60885654,59294.0,59289.0,0.03376]
[1723729485480,0.60885654,59294.0,59285.0,1.2307319]
[1723729485481,0.44020554,59294.0,59286.0,0.03376]
[1723729485696,0.168656,59292.0,59286.0,0.03376]
[1723729485910,0.506013,59287.0,59286.0,0.03376]
[1723729486131,0.50602,59286.0,59285.0,1.2307319]
[1723729486750,0.168673,59286.0,59285.0,1.2307319]
[1723729487419,0.337332,59289.0,59285.0,1.2307319]
[1723729487610,0.50602,59286.0,59285.0,1.2307319]
[1723729487829,0.50602,59286.0,59281.0,0.000826]
[1723729487830,0.621255,59282.0,59281.0,0.000826]
[1723729488064,1.13017954,59282.0,59281.0,0.000826]
[1723729488492,1.30173408,59282.0,59281.0,0.000826]
[1723729488737,1.76210408,59282.0,59281.0,0.000826]
[1723729488986,1.26487381,59282.0,59281.0,0.000826]
[1723729489194,1.26487381,59282.0,59281.0,0.001826]
[1723729489401,1.60224381,59282.0,59281.0,0.001826]
[1723729489621,1.60224381,59282.0,59281.0,0.000826]
[1723729490115,1.26487381,59282.0,59281.0,0.000826]
[1723729490326,1.78379835,59282.0,59281.0,0.000826]
[1723729490543,1.75794381,59282.0,59281.0,0.000826]
[1723729490987,1.77094381,59282.0,59281.0,0.000826]
[1723729491195,1.75794381,59282.0,59281.0,0.000826]
[1723729491629,0.506115,59275.0,59274.0,1.2307319]
[1723729491838,0.168708,59274.0,59272.0,1.2315599]
[1723729492049,0.506124,59274.0,59272.0,1.2315599]
[1723729492699,0.000174,59281.0,59273.0,0.23070327]
[1723729492922,0.17172854,59281.0,59274.0,0.1066]
[1723729493122,0.168693,59279.0,59274.0,0.08577727]
[1723729493548,0.000174,59281.0,59274.0,0.08577727]
[1723729493979,0.000174,59281.0,59273.0,0.144926]
[1723729493980,0.17155454,59280.0,59273.0,0.144926]
[1723729494205,0.337393,59278.0,59273.0,0.144926]
[1723729494421,0.337393,59278.0,59273.0,0.000826]
[1723729494422,0.506093,59278.0,59273.0,0.000826]
[1723729494632,0.1687,59277.0,59273.0,0.000826]
[1723729494841,0.1687,59277.0,59273.0,0.001826]
[1723729495056,0.168708,59274.0,59273.0,0.001826]
[1723729495265,0.506124,59274.0,59273.0,0.000826]
[1723729495890,0.17155454,59276.0,59273.0,0.000826]
[1723729496101,0.506124,59274.0,59273.0,0.000826]
[1723729496512,0.168708,59274.0,59273.0,0.000826]
[1723729496722,0.17155454,59276.0,59273.0,0.000826]
[1723729496932,0.171708,59274.0,59273.0,0.000826]
[1723729497135,0.003,59274.0,59273.0,0.000826]
[1723729497341,0.002,59274.0,59273.0,1.2315579]
[1723729498388,0.168706,59275.0,59273.0,1.2315579]
[1723729498599,0.168708,59274.0,59273.0,1.2325579]
[1723729498811,0.168705,59275.0,59273.0,1.2315579]
[1723729499028,1.12169454,59274.0,59273.0,0.000826]
[1723729499245,1.71641054,59274.0,59273.0,0.002826]
[1723729499509,1.71641054,59274.0,59264.0,0.00012]
[1723729499510,0.5062,59265.0,59264.0,0.00012]
[1723729499746,2.20504321,59265.0,59264.0,0.00012]
[1723729499985,2.14226594,59265.0,59264.0,0.00012]
[1723729500240,1.31003194,59265.0,59264.0,0.00012]
[1723729500493,1.59112154,59265.0,59264.0,0.00012]
[1723729500802,0.1,59265.0,59264.0,0.00012]
[1723729501055,0.3693,59279.0,59266.0,0.1137]
[1723729501312,0.51466362,59277.0,59266.0,0.14746]
[1723729501570,0.51466362,59277.0,59264.0,0.00012]
[1723729501571,0.3693,59272.0,59264.0,0.00012]
[1723729501851,0.013,59265.0,59264.0,0.00012]
[1723729502404,0.014,59265.0,59264.0,0.00212]
[1723729502662,0.013,59265.0,59264.0,0.28839327]
[1723729503177,0.013,59265.0,59264.0,0.62586627]
[1723729503470,0.168714,59272.0,59264.0,0.03388]
[1723729503742,0.168724,59269.0,59264.0,0.00012]
[1723729503982,0.8755,59265.0,59264.0,0.00012]
[1723729504519,0.539033,59265.0,59264.0,0.00012]
[1723729504921,0.002,59265.0,59264.0,0.002946]
[1723729505132,0.000174,59281.0,59276.0,0.1426]
[1723729505418,0.000174,59281.0,59277.0,0.45446319]
[1723729505665,0.000174,59281.0,59280.0,0.20245]
[1723729505925,0.000174,59281.0,59280.0,0.94313082]
[1723729506199,0.000174,59281.0,59280.0,0.17636]
[1723729506476,0.000174,59281.0,59280.0,0.03376]
[1723729506766,0.010174,59281.0,59278.0,0.03376]
[1723729507307,0.010174,59281.0,59280.0,0.506071]
[1723729507556,0.35141654,59281.0,59280.0,0.03376]
[1723729507804,0.68879254,59281.0,59280.0,0.03376]
[1723729508080,0.000174,59281.0,59280.0,0.03376]
[1723729508312,0.001174,59281.0,59280.0,0.03376]
[1723729508569,0.002174,59281.0,59280.0,0.1296]
[1723729508838,0.001174,59281.0,59278.0,0.16036]
[1723729509059,0.001174,59281.0,59280.0,0.004]
[1723729509310,0.002174,59281.0,59280.0,0.004]
[1723729509562,0.17372854,59281.0,59280.0,0.004]
[1723729509808,1.25536854,59281.0,59280.0,0.004]
[1723729510330,0.001174,59281.0,59280.0,0.004]
[1723729510584,0.001174,59281.0,59280.0,0.29839]
[1723729510811,0.001174,59281.0,59280.0,0.2396]
[1723729510812,0.002174,59281.0,59280.0,0.2396]
[1723729511315,0.001174,59281.0,59280.0,0.29839]
[1723729511557,0.000174,59281.0,59280.0,0.1267]
[1723729511766,0.001174,59281.0,59280.0,0.1287]
[1723729512000,0.000174,59281.0,59280.0,0.1287]
[1723729512430,0.003174,59281.0,59280.0,0.1287]
[1723729513082,0.000174,59281.0,59280.0,0.1287]
[1723729513293,0.000174,59281.0,59280.0,0.002]
[1723729513538,0.71454564,59281.0,59280.0,0.002]
[1723729513770,1.24535751,59281.0,59280.0,0.002]
[1723729514014,0.15659235,59281.0,59280.0,0.002]
[1723729514252,0.15659235,59281.0,59274.0,1.3656319]
[1723729514253,0.100174,59281.0,59274.0,1.3656319]
[1723729514496,0.168694,59279.0,59274.0,1.3656319]
[1723729514755,0.3374,59277.0,59274.0,1.2307319]